fUST/lending_fUST_20250426
["ID","MTS","AMOUNT","RATE_DAILY","PERIOD"]
[359026050,1745658647986,-500.0,0.00016986,2]
[359026051,1745658647998,-1274.42,0.00016986,2]
[359026053,1745658648007,-500.0,0.00016986,2]
[359026055,1745658648017,-500.0,0.00016986,2]
[359026057,1745658648027,-258.94570001,0.00016986,2]
[359026072,1745658648166,-629.97,0.00016986,2]
[359026074,1745658648178,-508.17164076,0.00016986,2]
[359026076,1745658648189,-500.0,0.00016986,2]
[359026078,1745658648198,-500.0,0.00016986,2]
[359026080,1745658648208,-500.0,0.00016986,2]
[359026082,1745658648218,-500.0,0.00016986,2]
[359026084,1745658648228,-500.0,0.00016986,2]
[359026086,1745658648239,-500.0,0.00016986,2]
[359026088,1745658648249,-500.0,0.00016986,2]
[359026090,1745658648258,-753.71,0.00016986,2]
[359026092,1745658648268,-507.12875188,0.00016986,2]
[359026094,1745658648278,-589.04,0.00016986,2]
[359026096,1745658648287,-500.0,0.00016986,2]
[359026098,1745658648297,-500.0,0.00016986,2]
[359026100,1745658648307,-433.49911978,0.00016986,2]
[359026102,1745658648316,-486.82424954,0.00016986,2]
[359026104,1745658648326,-500.0,0.00016986,2]
[359026106,1745658648336,-500.0,0.00016986,2]
[359026108,1745658648346,-500.0,0.00016986,2]
[359026110,1745658648356,-507.82144625,0.00016986,2]
[359026112,1745658648367,-1175.24,0.00016986,2]
[359026114,1745658648377,-500.0,0.00016986,2]
[359026116,1745658648387,-4727.73,0.00016986,2]
[359026118,1745658648396,-500.0,0.00016986,2]
[359026120,1745658648405,-500.0,0.00016986,2]
[359026121,1745658648415,-500.0,0.00016986,2]
[359026123,1745658648424,-1747.67,0.00016986,2]
[359026125,1745658648434,-500.0,0.00016986,2]
[359026127,1745658648443,-500.0,0.00016986,2]
[359026129,1745658648453,-500.0,0.00016986,2]
[359026131,1745658648463,-482.441015,0.00016986,2]
[359026133,1745658648473,-254.31416853,0.00016986,2]
[359026135,1745658648482,-1193.01,0.00016986,2]
[359026137,1745658648492,-500.0,0.00016986,2]
[359026139,1745658648502,-500.0,0.00016986,2]
[359026141,1745658648513,-408.24305004,0.00016986,2]
[359026143,1745658648523,-500.0,0.00016986,2]
[359026145,1745658648533,-1173.25,0.00016986,2]
[359026148,1745658648543,-500.0,0.00016986,2]
[359026149,1745658648553,-500.0,0.00016986,2]
[359026151,1745658648563,-507.79615953,0.00016986,2]
[359026153,1745658648572,-500.0,0.00016986,2]
[359026155,1745658648582,-500.0,0.00016986,2]
[359026157,1745658648592,-1051.52,0.00016986,2]
[359026159,1745658648602,-500.0,0.00016986,2]
[359026161,1745658648611,-500.0,0.00016986,2]
[359026163,1745658648621,-500.0,0.00016986,2]
[359026165,1745658648630,-500.0,0.00016986,2]
[359026167,1745658648641,-500.0,0.00016986,2]
[359026169,1745658648651,-500.0,0.00016986,2]
[359026171,1745658648665,-500.0,0.00016986,2]
[359026173,1745658648675,-517.3796734,0.00016986,2]
[359026175,1745658648684,-500.0,0.00016986,2]
[359026177,1745658648694,-500.0,0.00016986,2]
[359026179,1745658648704,-500.0,0.00016986,2]
[359026181,1745658648713,-500.0,0.00016986,2]
[359026183,1745658648723,-500.0,0.00016986,2]
[359026185,1745658648732,-500.0,0.00016986,2]
[359026187,1745658648742,-500.0,0.00016986,2]
[359026189,1745658648752,-500.0,0.00016986,2]
[359026191,1745658648761,-500.0,0.00016986,2]
[359026193,1745658648771,-500.0,0.00016986,2]
[359026195,1745658648780,-500.0,0.00016986,2]
[359026197,1745658648789,-500.0,0.00016986,2]
[359026199,1745658648799,-513.6293504,0.00016986,2]
[359026201,1745658648809,-500.82,0.00016986,2]
[359026203,1745658648819,-500.0,0.00016986,2]
[359026205,1745658648829,-500.0,0.00016986,2]
[359026207,1745658648838,-510.03596857,0.00016986,2]
[359026209,1745658648848,-2714.29,0.00016986,2]
[359026211,1745658648857,-500.0,0.00016986,2]
[359026213,1745658648867,-500.0,0.00016986,2]
[359026215,1745658648877,-500.0,0.00016986,2]
[359026217,1745658648886,-500.0,0.00016986,2]
[359026219,1745658648897,-500.0,0.00016986,2]
[359026221,1745658648906,-500.0,0.00016986,2]
[359026223,1745658648916,-500.0,0.00016986,2]
[359026225,1745658648925,-500.0,0.00016986,2]
[359026227,1745658648935,-548.24,0.00016986,2]
[359026229,1745658648945,-1568.72,0.00016986,2]
[359026231,1745658648955,-500.0,0.00016986,2]
[359026233,1745658648965,-1470.64,0.00016986,2]
[359026235,1745658648975,-510.18852432,0.00016986,2]
[359026237,1745658648984,-1282.09,0.00016986,2]
[359026239,1745658648994,-500.0,0.00016986,2]
[359026241,1745658649005,-500.0,0.00016986,2]
[359026243,1745658649015,-535.14040774,0.00016986,2]
[359026245,1745658649026,-500.0,0.00016986,2]
[359026247,1745658649035,-676.29,0.00016986,2]
[359026249,1745658649045,-500.0,0.00016986,2]
[359026251,1745658649055,-504.85053288,0.00016986,2]
[359026253,1745658649064,-1802.45,0.00016986,2]
[359026255,1745658649074,-1254.95,0.00016986,2]
[359026257,1745658649084,-500.0,0.00016986,2]
[359026259,1745658649094,-1648.13,0.00016986,2]
[359026261,1745658649104,-506.06599035,0.00016986,2]
[359026263,1745658649115,-500.0,0.00016986,2]
[359026265,1745658649124,-500.0,0.00016986,2]
[359026267,1745658649134,-500.0,0.00016986,2]
[359026269,1745658649144,-723.39,0.00016986,2]
[359026272,1745658649154,-1291.97,0.00016986,2]
[359026274,1745658649165,-500.0,0.00016986,2]
[359026275,1745658649175,-711.24,0.00016986,2]
[359026277,1745658649184,-504.30432093,0.00016986,2]
[359026278,1745658649194,-500.0,0.00016986,2]
[359026279,1745658649204,-500.0,0.00016986,2]
[359026280,1745658649214,-500.0,0.00016986,2]
[359026281,1745658649224,-500.0,0.00016986,2]
[359026282,1745658649233,-500.0,0.00016986,2]
[359026283,1745658649243,-500.0,0.00016986,2]
[359026284,1745658649253,-1955.81,0.00016986,2]
[359026285,1745658649263,-500.0,0.00016986,2]
[359026286,1745658649273,-500.0,0.00016986,2]
[359026287,1745658649283,-4434.19,0.00016986,2]
[359026288,1745658649293,-500.0,0.00016986,2]
[359026289,1745658649303,-16696.86093052,0.00016999,2]
[359026290,1745658649313,-508.40541627,0.00016999,2]
[359026291,1745658649324,-156933.17622564,0.00017,2]
[359026292,1745658649568,-1596.96875,0.00017,2]
[359026396,1745658653032,-28081.30691539,0.00017,2]
[359026397,1745658653083,-1575.57336731,0.00017,2]
[359026407,1745658826114,13315.0,0.00023,120]
[359026424,1745659633154,-410.4127238,0.00014894,2]
[359026425,1745659633176,-926.15672551,0.00015,2]
[359026426,1745659633198,-267.161596,0.00015253,2]
[359026427,1745659633220,-300.0,0.00015332,2]
[359026428,1745659633241,-300.0,0.00015332,2]
[359026429,1745659633262,-33.7429873,0.00015333,2]
[359026430,1745659636116,-1166.2570127,0.00015333,2]
[359026431,1745659636139,-300.0,0.00015333,2]
[359026432,1745659636162,-300.0,0.00015333,2]
[359026433,1745659636183,-18892.72085,0.00015334,2]
[359026434,1745659636206,-194.4696651,0.00015387,2]
[359026435,1745659636228,-2173.70885632,0.000158,2]
[359026436,1745659636250,-1038.00665262,0.00015973,2]
[359026437,1745659636271,-509.88349048,0.00016011,2]
[359026438,1745659636292,-361.6458294,0.00016055,2]
[359026439,1745659636313,-361.6458294,0.00016055,2]
[359026440,1745659636334,-150.03129049,0.00016073,2]
[359026441,1745659636356,-500.0,0.00016164,2]
[359026442,1745659636378,-1000.0,0.00016173,2]
[359026443,1745659636400,-160.0,0.00016219,2]
[359026444,1745659636421,-421.06755229,0.00016219,2]
[359026445,1745659636442,-160.0,0.00016219,2]
[359026446,1745659636463,-416.86821582,0.00016219,2]
[359026447,1745659654117,-361.6458294,0.00016055,2]
[359026448,1745659654143,-228.21447654,0.00016301,2]
[359026475,1745659832222,-160.0,0.00016301,2]
[359026477,1745659832233,-421.06755229,0.00016301,2]
[359026479,1745659832243,-771.78552346,0.00016301,2]
[359026480,1745659832252,-160.0,0.00016301,2]
[359026481,1745659832262,-4080.88726194,0.00016332,2]
[359026482,1745659832271,-177.095,0.00016335,2]
[359026483,1745659832280,-300.0,0.00016337,2]
[359026484,1745659832291,-300.0,0.00016337,2]
[359026485,1745659832300,-169.75481221,0.00016338,2]
[359026486,1745659832311,-908.25582106,0.00016338,2]
[359026487,1745659832320,-151.0,0.00016428,2]
[359026488,1745659832329,-142.90184184,0.00016428,2]
[359026489,1745659832346,-8.09815816,0.00016428,2]
[359026490,1745659832355,-207.4,0.00016428,2]
[359026491,1745659832365,-571.43293488,0.00016437,2]
[359026492,1745659832374,-332.17736454,0.00016437,2]
[359026493,1745659832384,-507.78577039,0.00016438,2]
[359026494,1745659832394,-500.0,0.00016438,2]
[359026495,1745659832404,-508.21406788,0.00016438,2]
[359026496,1745659832413,-500.0,0.00016438,2]
[359026497,1745659832424,-500.0,0.00016438,2]
[359026498,1745659832434,-500.0,0.00016438,2]
[359026499,1745659832444,-315.86604801,0.00016438,2]
[359026500,1745659832454,-503.07880305,0.00016438,2]
[359026501,1745659832464,-500.0,0.00016438,2]
[359026502,1745659832473,-511.22327865,0.00016438,2]
[359026503,1745659832482,-507.77398444,0.00016438,2]
[359026504,1745659832492,-172.80891822,0.00016438,2]
[359026505,1745659832502,-500.0,0.00016438,2]
[359026506,1745659832512,-512.77262644,0.00016438,2]
[359026507,1745659832521,-500.0,0.00016438,2]
[359026508,1745659832531,-514.52,0.00016438,2]
[359026509,1745659832543,-169.87643054,0.00016438,2]
[359026510,1745659832554,-500.0,0.00016438,2]
[359026511,1745659832564,-500.0,0.00016438,2]
[359026512,1745659832574,-500.0,0.00016438,2]
[359026513,1745659832583,-500.0,0.00016438,2]
[359026514,1745659832592,-500.0,0.00016438,2]
[359026515,1745659832602,-500.0,0.00016438,2]
[359026516,1745659832611,-500.0,0.00016438,2]
[359026517,1745659832621,-500.0,0.00016438,2]
[359026518,1745659832630,-554.00008701,0.00016438,2]
[359026519,1745659832640,-500.0,0.00016438,2]
[359026520,1745659832650,-500.0,0.00016438,2]
[359026521,1745659832660,-500.0,0.00016438,2]
[359026522,1745659832671,-500.0,0.00016438,2]
[359026523,1745659832680,-505.96526536,0.00016438,2]
[359026524,1745659832690,-500.0,0.00016438,2]
[359026525,1745659832700,-500.0,0.00016438,2]
[359026526,1745659832710,-500.0,0.00016438,2]
[359026527,1745659832721,-500.0,0.00016438,2]
[359026528,1745659832730,-500.0,0.00016438,2]
[359026529,1745659832741,-500.0,0.00016438,2]
[359026530,1745659832751,-500.0,0.00016438,2]
[359026531,1745659832760,-500.0,0.00016438,2]
[359026532,1745659832770,-500.0,0.00016438,2]
[359026533,1745659832779,-358.34723372,0.00016438,2]
[359026534,1745659832789,-500.0,0.00016438,2]
[359026535,1745659832799,-500.0,0.00016438,2]
[359026536,1745659832808,-478.93744249,0.00016438,2]
[359026537,1745659832818,-500.0,0.00016438,2]
[359026538,1745659832828,-500.0,0.00016438,2]
[359026539,1745659832838,-1272.45,0.00016438,2]
[359026540,1745659832848,-538.79,0.00016438,2]
[359026541,1745659832858,-500.0,0.00016438,2]
[359026542,1745659832867,-500.0,0.00016438,2]
[359026543,1745659832877,-500.0,0.00016438,2]
[359026544,1745659832887,-500.0,0.00016438,2]
[359026545,1745659832897,-537.57019926,0.00016438,2]
[359026546,1745659832906,-306.70771323,0.00016438,2]
[359026547,1745659832915,-500.0,0.00016438,2]
[359026548,1745659832925,-1115.11,0.00016438,2]
[359026549,1745659832935,-500.0,0.00016438,2]
[359026550,1745659832944,-500.0,0.00016438,2]
[359026551,1745659832954,-580.29,0.00016438,2]
[359026552,1745659832964,-512.21421511,0.00016438,2]
[359026553,1745659832974,-500.0,0.00016438,2]
[359026554,1745659832983,-500.0,0.00016438,2]
[359026555,1745659832993,-500.0,0.00016438,2]
[359026556,1745659833003,-551.22,0.00016438,2]
[359026557,1745659833015,-500.0,0.00016438,2]
[359026558,1745659833024,-515.41,0.00016438,2]
[359026559,1745659833033,-841.08,0.00016438,2]
[359026560,1745659833044,-500.0,0.00016438,2]
[359026561,1745659833054,-500.0,0.00016438,2]
[359026562,1745659833063,-1020.08008562,0.00016438,2]
[359026589,1745659838219,-666.68264225,0.00016438,2]
[359026596,1745659838275,-24.57727213,0.00016438,2]
[359026598,1745659838285,-500.0,0.00016438,2]
[359026600,1745659838295,-500.0,0.00016438,2]
[359026602,1745659838305,-500.0,0.00016438,2]
[359026604,1745659838315,-1529.21,0.00016438,2]
[359026606,1745659838325,-659.49,0.00016438,2]
[359026608,1745659838335,-3879.92,0.00016438,2]
[359026610,1745659838344,-500.0,0.00016438,2]
[359026612,1745659838354,-500.0,0.00016438,2]
[359026614,1745659838363,-500.0,0.00016438,2]
[359026616,1745659838373,-500.0,0.00016438,2]
[359026618,1745659838382,-500.0,0.00016438,2]
[359026620,1745659838392,-500.0,0.00016438,2]
[359026623,1745659838414,-505.8670936,0.00016438,2]
[359026625,1745659838425,-500.0,0.00016438,2]
[359026627,1745659838435,-1028.34,0.00016438,2]
[359026629,1745659838445,-1509.95,0.00016438,2]
[359026632,1745659838456,-500.0,0.00016438,2]
[359026633,1745659838466,-4136.77,0.00016438,2]
[359026636,1745659838476,-500.0,0.00016438,2]
[359026638,1745659838486,-500.0,0.00016438,2]
[359026640,1745659838496,-500.0,0.00016438,2]
[359026642,1745659838506,-500.0,0.00016438,2]
[359026644,1745659838516,-500.0,0.00016438,2]
[359026646,1745659838526,-500.0,0.00016438,2]
[359026648,1745659838536,-1043.88,0.00016438,2]
[359026650,1745659838547,-606.45362551,0.00016438,2]
[359026652,1745659838557,-1026.59,0.00016438,2]
[359026654,1745659838567,-500.0,0.00016438,2]
[359026656,1745659838578,-580.91,0.00016438,2]
[359026658,1745659838589,-500.0,0.00016438,2]
[359026660,1745659838599,-500.0,0.00016438,2]
[359026662,1745659838609,-500.0,0.00016438,2]
[359026664,1745659838619,-920.08,0.00016438,2]
[359026666,1745659838629,-510.62836253,0.00016438,2]
[359026668,1745659838640,-500.0,0.00016438,2]
[359026670,1745659838651,-500.0,0.00016438,2]
[359026673,1745659838661,-500.0,0.00016438,2]
[359026675,1745659838671,-500.0,0.00016438,2]
[359026677,1745659838681,-500.0,0.00016438,2]
[359026679,1745659838691,-500.0,0.00016438,2]
[359026681,1745659838700,-500.0,0.00016438,2]
[359026683,1745659838710,-500.0,0.00016438,2]
[359026685,1745659838720,-500.0,0.00016438,2]
[359026687,1745659838730,-500.0,0.00016438,2]
[359026689,1745659838740,-581.46667642,0.00016438,2]
[359026691,1745659838750,-500.0,0.00016438,2]
[359026693,1745659838760,-550.33021892,0.00016438,2]
[359026695,1745659838770,-500.0,0.00016438,2]
[359026697,1745659838779,-500.0,0.00016438,2]
[359026699,1745659838789,-511.85019411,0.00016438,2]
[359026701,1745659838799,-500.0,0.00016438,2]
[359026703,1745659838809,-151.84851982,0.00016438,2]
[359026705,1745659838819,-591.76,0.00016438,2]
[359026708,1745659838837,-500.0,0.00016438,2]
[359026710,1745659838847,-500.0,0.00016438,2]
[359026712,1745659838857,-519.24922054,0.00016438,2]
[359026714,1745659838867,-500.0,0.00016438,2]
[359026716,1745659838877,-500.0,0.00016438,2]
[359026718,1745659838887,-2375.0,0.00016438,2]
[359026720,1745659838897,-511.2628891,0.00016438,2]
[359026722,1745659838907,-500.0,0.00016438,2]
[359026724,1745659838918,-500.0,0.00016438,2]
[359026726,1745659838929,-500.0,0.00016438,2]
[359026728,1745659838939,-500.0,0.00016438,2]
[359026731,1745659838950,-1286.81,0.00016438,2]
[359026733,1745659838960,-1121.83,0.00016438,2]
[359026735,1745659838969,-632.96,0.00016438,2]
[359026737,1745659838979,-500.0,0.00016438,2]
[359026739,1745659838989,-500.0,0.00016438,2]
[359026741,1745659839001,-501.85114087,0.00016438,2]
[359026743,1745659839017,-500.0,0.00016438,2]
[359026745,1745659839027,-500.0,0.00016438,2]
[359026747,1745659839037,-500.0,0.00016438,2]
[359026749,1745659839046,-505.2370625,0.00016438,2]
[359026751,1745659839057,-500.0,0.00016438,2]
[359026753,1745659839068,-500.0,0.00016438,2]
[359026755,1745659839078,-506.51716267,0.00016438,2]
[359026758,1745659839089,-500.0,0.00016438,2]
[359026760,1745659839099,-1442.11,0.00016438,2]
[359026762,1745659839109,-506.30440166,0.00016438,2]
[359026764,1745659839120,-500.0,0.00016438,2]
[359026766,1745659839130,-500.0,0.00016438,2]
[359026768,1745659839140,-1098.08,0.00016438,2]
[359026770,1745659839150,-506.96793475,0.00016438,2]
[359026772,1745659839161,-1372.63,0.00016438,2]
[359026774,1745659839171,-500.0,0.00016438,2]
[359026776,1745659839180,-1324.28,0.00016438,2]
[359026778,1745659839190,-500.0,0.00016438,2]
[359026780,1745659839201,-500.0,0.00016438,2]
[359026782,1745659839211,-500.0,0.00016438,2]
[359026784,1745659839222,-1577.15,0.00016438,2]
[359026786,1745659839232,-500.0,0.00016438,2]
[359026788,1745659839242,-329.62862943,0.00016438,2]
[359026790,1745659839252,-500.0,0.00016438,2]
[359026792,1745659839263,-500.0,0.00016438,2]
[359026794,1745659839273,-500.0,0.00016438,2]
[359026796,1745659839283,-500.0,0.00016438,2]
[359026799,1745659839294,-622.33,0.00016438,2]
[359026800,1745659839303,-500.0,0.00016438,2]
[359026803,1745659839315,-292.13141789,0.00016438,2]
[359026805,1745659839325,-500.0,0.00016438,2]
[359026807,1745659839335,-1500.0,0.00016438,2]
[359026809,1745659839345,-483.255396,0.00016438,2]
[359026811,1745659839355,-706.0,0.00016446,2]
[359026813,1745659839365,-403.0,0.00016446,2]
[359026815,1745659839375,-545.0,0.00016446,2]
[359026817,1745659839385,-500.0,0.00016473,2]
[359026819,1745659839394,-500.0,0.00016473,2]
[359026821,1745659839404,-216.42165742,0.00016473,2]
[359026823,1745659839415,-500.0,0.00016473,2]
[359026825,1745659839425,-501.16566229,0.00016473,2]
[359026827,1745659839435,-500.0,0.00016473,2]
[359026829,1745659839444,-500.0,0.00016473,2]
[359026831,1745659839454,-500.0,0.00016473,2]
[359026833,1745659839464,-500.0,0.00016473,2]
[359026835,1745659839474,-500.0,0.00016473,2]
[359026837,1745659839484,-500.0,0.00016473,2]
[359026839,1745659839494,-500.0,0.00016473,2]
[359026841,1745659839504,-2000.0,0.00016575,2]
[359026843,1745659839513,-2200.0,0.00016622,2]
[359026845,1745659839523,-500.0,0.00016712,2]
[359026847,1745659839533,-500.0,0.00016712,2]
[359026849,1745659839543,-500.0,0.00016712,2]
[359026852,1745659839554,-500.0,0.00016712,2]
[359026854,1745659839565,-511.20587932,0.00016712,2]
[359026856,1745659839574,-500.0,0.00016712,2]
[359026858,1745659839584,-500.0,0.00016712,2]
[359026860,1745659839594,-500.0,0.00016712,2]
[359026862,1745659839604,-510.99629399,0.00016712,2]
[359026864,1745659839614,-500.0,0.00016712,2]
[359026866,1745659839624,-500.0,0.00016712,2]
[359026868,1745659839636,-509.17996809,0.00016712,2]
[359026871,1745659839646,-500.0,0.00016712,2]
[359026873,1745659839656,-500.0,0.00016712,2]
[359026875,1745659839667,-500.0,0.00016712,2]
[359026877,1745659839678,-500.0,0.00016712,2]
[359026879,1745659839687,-500.0,0.00016712,2]
[359026881,1745659839697,-500.0,0.00016712,2]
[359026883,1745659839707,-500.0,0.00016712,2]
[359026885,1745659839717,-500.0,0.00016712,2]
[359026887,1745659839727,-500.0,0.00016712,2]
[359026889,1745659839736,-500.0,0.00016712,2]
[359026891,1745659839746,-500.0,0.00016712,2]
[359026893,1745659839756,-584.58268994,0.00016712,2]
[359026894,1745659839766,-500.0,0.00016712,2]
[359026896,1745659839776,-500.0,0.00016712,2]
[359026898,1745659839786,-500.0,0.00016712,2]
[359026900,1745659839796,-500.0,0.00016712,2]
[359026901,1745659839806,-191.67735553,0.00016712,2]
[359026903,1745659839815,-618.84889374,0.00016712,2]
[359026905,1745659839825,-500.0,0.00016712,2]
[359026906,1745659839835,-1272.45,0.00016712,2]
[359026908,1745659839845,-538.79,0.00016712,2]
[359026910,1745659839855,-500.0,0.00016712,2]
[359026912,1745659839865,-500.0,0.00016712,2]
[359026913,1745659839876,-500.0,0.00016712,2]
[359026915,1745659839886,-500.0,0.00016712,2]
[359026917,1745659839896,-201.59638069,0.00016712,2]
[359026919,1745659839906,-1115.11,0.00016712,2]
[359026921,1745659839916,-500.0,0.00016712,2]
[359026922,1745659839926,-500.0,0.00016712,2]
[359026924,1745659839935,-580.29,0.00016712,2]
[359026926,1745659839948,-500.0,0.00016712,2]
[359026928,1745659839958,-500.0,0.00016712,2]
[359026929,1745659839968,-500.0,0.00016712,2]
[359026932,1745659839978,-551.22,0.00016712,2]
[359026935,1745659839988,-500.0,0.00016712,2]
[359026936,1745659839999,-515.41,0.00016712,2]
[359026939,1745659840010,-841.08,0.00016712,2]
[359026941,1745659840020,-500.0,0.00016712,2]
[359026942,1745659840029,-500.0,0.00016712,2]
[359026944,1745659840041,-1711.34,0.00016712,2]
[359026946,1745659840051,-500.0,0.00016712,2]
[359026948,1745659840060,-550.1436109,0.00016712,2]
[359026949,1745659840070,-500.0,0.00016712,2]
[359026951,1745659840079,-1529.21,0.00016712,2]
[359026953,1745659840091,-659.49,0.00016712,2]
[359026955,1745659840102,-3879.92,0.00016712,2]
[359026956,1745659840113,-500.0,0.00016712,2]
[359026958,1745659840122,-601.56040641,0.00016712,2]
[359026960,1745659840133,-500.0,0.00016712,2]
[359026961,1745659840143,-500.0,0.00016712,2]
[359026963,1745659840154,-500.0,0.00016712,2]
[359026965,1745659840164,-500.0,0.00016712,2]
[359026967,1745659840174,-500.0,0.00016712,2]
[359026969,1745659840185,-1028.34,0.00016712,2]
[359026971,1745659840194,-1509.95,0.00016712,2]
[359026973,1745659840205,-500.0,0.00016712,2]
[359026974,1745659840215,-4136.77,0.00016712,2]
[359026976,1745659840224,-500.0,0.00016712,2]
[359026978,1745659840234,-500.0,0.00016712,2]
[359026979,1745659840244,-508.76204518,0.00016712,2]
[359026981,1745659840255,-500.0,0.00016712,2]
[359026983,1745659840265,-500.0,0.00016712,2]
[359026985,1745659840275,-500.0,0.00016712,2]
[359026986,1745659840284,-1043.88,0.00016712,2]
[359026988,1745659840294,-1026.59,0.00016712,2]
[359026990,1745659840304,-500.0,0.00016712,2]
[359026992,1745659840314,-580.91,0.00016712,2]
[359026994,1745659840324,-500.0,0.00016712,2]
[359026996,1745659840333,-500.0,0.00016712,2]
[359026997,1745659840343,-500.0,0.00016712,2]
[359026999,1745659840353,-920.08,0.00016712,2]
[359027001,1745659840363,-500.0,0.00016712,2]
[359027003,1745659840373,-500.0,0.00016712,2]
[359027004,1745659840382,-479.05360081,0.00016712,2]
[359027006,1745659840392,-262.23750346,0.00016712,2]
[359027008,1745659840402,-500.0,0.00016712,2]
[359027010,1745659840412,-500.0,0.00016712,2]
[359027012,1745659840422,-500.0,0.00016712,2]
[359027013,1745659840432,-500.0,0.00016712,2]
[359027015,1745659840441,-500.0,0.00016712,2]
[359027016,1745659840451,-500.0,0.00016712,2]
[359027018,1745659840461,-500.0,0.00016712,2]
[359027020,1745659840471,-500.0,0.00016712,2]
[359027022,1745659840480,-500.0,0.00016712,2]
[359027024,1745659840490,-500.0,0.00016712,2]
[359027025,1745659840499,-591.76,0.00016712,2]
[359027027,1745659840508,-503.88179524,0.00016712,2]
[359027030,1745659840518,-531.88912114,0.00016712,2]
[359027034,1745659840538,-500.0,0.00016712,2]
[359027036,1745659840549,-500.0,0.00016712,2]
[359027038,1745659840559,-2375.0,0.00016712,2]
[359027040,1745659840569,-500.0,0.00016712,2]
[359027042,1745659840579,-500.0,0.00016712,2]
[359027043,1745659840588,-500.0,0.00016712,2]
[359027045,1745659840598,-1286.81,0.00016712,2]
[359027047,1745659840608,-1121.83,0.00016712,2]
[359027049,1745659840617,-500.0,0.00016712,2]
[359027051,1745659840627,-632.96,0.00016712,2]
[359027052,1745659840638,-500.0,0.00016712,2]
[359027054,1745659840648,-505.78742749,0.00016712,2]
[359027056,1745659840658,-296.08663874,0.00016712,2]
[359027058,1745659840669,-500.0,0.00016712,2]
[359027060,1745659840679,-500.0,0.00016712,2]
[359027061,1745659840689,-500.0,0.00016712,2]
[359027063,1745659840699,-500.0,0.00016712,2]
[359027065,1745659840710,-500.0,0.00016712,2]
[359027067,1745659840721,-1442.11,0.00016712,2]
[359027069,1745659840731,-500.0,0.00016712,2]
[359027071,1745659840741,-500.0,0.00016712,2]
[359027072,1745659840751,-1098.08,0.00016712,2]
[359027074,1745659840761,-1372.63,0.00016712,2]
[359027076,1745659840771,-500.0,0.00016712,2]
[359027078,1745659840781,-1324.28,0.00016712,2]
[359027079,1745659840790,-500.0,0.00016712,2]
[359027081,1745659840800,-421.82,0.00016712,2]
[359027083,1745659840810,-500.0,0.00016712,2]
[359027085,1745659840820,-1164.44112557,0.00016712,2]
[359027088,1745659840840,-412.70887443,0.00016712,2]
[359027089,1745659840849,-500.0,0.00016712,2]
[359027091,1745659840859,-500.0,0.00016712,2]
[359027093,1745659840869,-500.0,0.00016712,2]
[359027095,1745659840878,-500.0,0.00016712,2]
[359027096,1745659840888,-500.0,0.00016712,2]
[359027098,1745659840898,-622.33,0.00016712,2]
[359027100,1745659840908,-500.0,0.00016712,2]
[359027102,1745659840918,-500.0,0.00016712,2]
[359027104,1745659840928,-2500.0,0.00016712,2]
[359027105,1745659840938,-361.6458294,0.000168,2]